[Event "European School-ch 2019"]
[Site "Mamaia"]
[Date "2019.06.05"]
[Round "6.26"]
[White "Shek, Daniel"]
[Black "Cnejev, Vladimir-Alexandru"]
[Result "0-1"]
[ECO "D00"]
[WhiteElo "1438"]
[BlackElo "1970"]
[Annotator "NA RC"]
[PlyCount "50"]
[EventDate "2019.05.31"]
[EventType "swiss"]
[EventCountry "ROU"]
[SourceTitle "playchess.com"]
[Source "ChessBase"]
[SourceQuality "1"]
[TimeControl "40/5400+30:1800+30"]

1. d4 {[%emt 0:00:00]} d5 {[%emt 0:00:00]} 2. Bf4 {[%emt 0:00:00]} Nf6 {[%emt 0:00:00]} 3. e3 {[%emt 0:00:00]} e6 {[%emt 0:00:00]} 4. Nd2 {[%emt 0:00:02]} c5 {[%emt 0:00:00]} 5. Ngf3 {[%emt 0:00:13]} Nc6 {[%emt 0:00:03]} 6. c3 {[%emt 0:00:18]} Bd6 {[%emt 0:00:07]} 7. Bg3 {[%emt 0:00:09]} O-O {[%emt 0:00:17]} 8. Bd3 {[%emt 0:00:31]} b6 {[%emt 0:00:08]} 9. e4 {[%emt 0:00:20] D02: 1 d4 d5 2 Nf3 sidelines, including 2...Nf6 3 g3 and 2...Nf6 3 Bf4} Be7 {[%emt 0:00:17]} 10. e5 {[%emt 0:00:30]} Nh5 {[%emt 0:00:12]} 11. Qb1 $146 {[%emt 0:02:51]} ({Predecessor:} 11. Nf1 cxd4 12. Nxd4 Nxd4 13. cxd4 g6 14. Ne3 f5 15. exf6 Bxf6 16. Be2 Nxg3 17. hxg3 {½-½ (37) Nakamura,H (2787)-Svidler,P (2760) Moscow 2018}) 11... h6 {[%emt 0:04:45]} 12. O-O {[%emt 0:04:43]} Bb7 {[%emt 0:03:52]} 13. a3 {[%emt 0:07:11]} a5 {[%emt 0:03:43]} 14. Rc1 {[%emt 0:11:17]} Qc8 {[%emt 0:01:07]} 15. Bh4 {[%emt 0:11:58]} Bxh4 {[%emt 0:06:22]} 16. Nxh4 {[%emt 0:00:05]} Ba6 {[%emt 0:16:40]} 17. g3 {[%emt 0:04:47]} g5 {[%emt 0:07:07]} 18. Nhf3 {[%emt 0:03:37]} f5 {[%emt 0:14:03]} 19. exf6 $16 {[%emt 0:02:22]} Rxf6 {[%emt 0:04:27]} 20. Bxa6 {[%emt 0:01:36]} Qxa6 {[%emt 0:01:03]} 21. Ne5 {[%emt 0:02:22]} Qe2 {[%emt 0:08:09]} 22. Ndf3 {[%emt 0:09:21]} Nxe5 {[%emt 0:02:36]} 23. dxe5 {[%emt 0:01:22]} Rxf3 {[%emt 0:00:33]} 24. Qg6+ {[%emt 0:01:50]} Ng7 {[%emt 0:01:20]} 25. Rc2 {[%emt 0:01:46]} Qxe5 0-1

[Event "European School-ch 2019"]
[Site "Mamaia"]
[Date "2019.06.05"]
[Round "6.27"]
[White "Magold, Filip"]
[Black "Conon, Catalin"]
[Result "1-0"]
[ECO "B32"]
[WhiteElo "1906"]
[BlackElo "1533"]
[Annotator "NA RC"]
[PlyCount "97"]
[EventDate "2019.05.31"]
[EventType "swiss"]
[EventCountry "ROU"]
[SourceTitle "playchess.com"]
[Source "ChessBase"]
[SourceQuality "1"]
[TimeControl "40/5400+30:1800+30"]

1. e4 {[%emt 0:00:00]} c5 {[%emt 0:00:00]} 2. Nf3 {[%emt 0:00:00]} Nc6 {[%emt 0:00:00]} 3. d4 {[%emt 0:00:00]} cxd4 {[%emt 0:00:00]} 4. Nxd4 {[%emt 0:00:00]} e5 {[%emt 0:00:00]} 5. Nb5 {[%emt 0:00:26]} a6 {[%emt 0:00:12]} 6. N5c3 {[%emt 0:00:43]} Nf6 {[%emt 0:00:07]} 7. Bg5 {[%emt 0:00:06]} h6 {[%emt 0:03:19]} 8. Bxf6 {[%emt 0:00:31]} Qxf6 {[%emt 0:00:10]} 9. Nd5 {[%emt 0:00:17]} Qd8 {[%emt 0:00:05]} 10. Nd2 $11 {[%emt 0:00:59]} Ne7 {[%emt 0:03:23]} 11. Nc4 {[%emt 0:01:22]} Nc6 {[%emt 0:28:02]} 12. c3 {[%emt 0:29:31]} b5 {[%emt 0:06:17]} 13. Ncb6 {[%emt 0:01:51]} Rb8 {[%emt 0:01:28]} 14. Nxc8 {[%emt 0:00:46]} Qxc8 {[%emt 0:03:13]} 15. a4 {[%emt 0:05:14]} b4 {[%emt 0:01:13]} 16. Bxa6 {[%emt 0:00:08]} Qd8 {[%emt 0:00:35]} 17. O-O {[%emt 0:01:46]} bxc3 {[%emt 0:03:44]} 18. bxc3 {[%emt 0:00:08]} Bc5 {[%emt 0:06:07]} 19. Qg4 {[%emt 0:03:40]} Qg5 {[%emt 0:07:44]} 20. Nc7+ {[%emt 0:05:53]} Kd8 {[%emt 0:02:42]} 21. Qxg5+ {[%emt 0:00:06]} hxg5 {[%emt 0:00:06]} 22. Nd5 Ne7 {[%emt 0:03:51]} 23. Rfb1 {[%emt 0:03:46]} Ra8 {[%emt 0:02:31]} 24. Bb7 {[%emt 0:02:18]} Ra7 {[%emt 0:02:03]} 25. a5 {[%emt 0:03:47]} f6 {[%emt 0:05:22]} 26. a6 {[%emt 0:02:08]} Nxd5 {[%emt 0:04:38]} 27. Bxd5 {[%emt 0:00:17]} Ke7 {[%emt 0:02:26]} 28. Rb7 {[%emt 0:04:59]} Rha8 {[%emt 0:05:20]} 29. Rxa7 {[%emt 0:00:22]} Rxa7 {[%emt 0:00:05]} 30. Bb7 {[%emt 0:00:03]} Kd6 {[%emt 0:00:45]} 31. Kf1 {[%emt 0:00:59]} g6 {[%emt 0:01:13]} 32. g4 {[%emt 0:00:25]} Kc7 {[%emt 0:01:00]} 33. Rb1 {[%emt 0:00:30]} Bb6 {[%emt 0:01:05]} 34. Ke2 {[%emt 0:00:16]} Bc5 {[%emt 0:00:43]} 35. f3 {[%emt 0:00:15]} Kd6 {[%emt 0:01:01]} 36. Rh1 {[%emt 0:00:14]} Ke6 {[%emt 0:00:36]} 37. h4 {[%emt 0:00:16]} gxh4 {[%emt 0:00:59]} 38. Rxh4 {[%emt 0:00:05]} f5 {[%emt 0:00:21]} 39. gxf5+ {[%emt 0:00:11]} gxf5 {[%emt 0:00:25]} 40. Rh6+ {[%emt 0:00:00]} Kf7 {[%emt 0:00:00]} 41. exf5 {[%emt 0:00:09]} Kg7 {[%emt 0:00:26]} 42. Rg6+ {[%emt 0:00:04]} Kf7 {[%emt 0:00:14]} 43. Kd3 {[%emt 0:00:03]} d6 {[%emt 0:00:36]} 44. Ke4 {[%emt 0:00:11]} Ke7 {[%emt 0:00:12]} 45. Kd5 {[%emt 0:00:16]} Kf7 {[%emt 0:00:20]} 46. Rxd6 {[%emt 0:00:39]} Bxd6 {[%emt 0:00:14]} 47. Kxd6 {[%emt 0:00:04]} Kf8 {[%emt 0:00:13]} 48. Kxe5 {[%emt 0:00:05]} Ke7 {[%emt 0:00:14]} 49. c4 {[%emt 0:00:05]} 1-0

[Event "European School-ch 2019"]
[Site "Mamaia"]
[Date "2019.06.05"]
[Round "6.28"]
[White "Karimli, Yusif"]
[Black "Durucay, Uygar"]
[Result "1-0"]
[ECO "D34"]
[WhiteElo "1470"]
[BlackElo "1575"]
[Annotator "NA RC"]
[PlyCount "122"]
[EventDate "2019.05.31"]
[EventType "swiss"]
[EventCountry "ROU"]
[SourceTitle "playchess.com"]
[Source "ChessBase"]
[SourceQuality "1"]
[TimeControl "40/5400+30:1800+30"]

1. Nf3 {[%emt 0:00:00]} d5 {[%emt 0:00:32]} 2. d4 {[%emt 0:00:02]} Nf6 {[%emt 0:01:05]} 3. g3 {[%emt 0:03:34]} e6 {[%emt 0:03:28]} 4. Bg2 {[%emt 0:00:51]} c5 {[%emt 0:00:13]} 5. O-O {[%emt 0:02:52]} Nc6 {[%emt 0:00:30]} 6. c4 {[%emt 0:00:14]} Be7 {[%emt 0:00:17]} 7. Nc3 {[%emt 0:05:38]} O-O {[%emt 0:02:24]} 8. cxd5 exd5 {[%emt 0:02:24]} 9. dxc5 {[%emt 0:08:50]} Bxc5 {[%emt 0:00:51]} 10. Bg5 {[%emt 0:03:34]} d4 {[%emt 0:06:09]} 11. Ne4 {[%emt 0:00:30]} Be7 {[%emt 0:00:30]} 12. Nxf6+ {[%emt 0:00:30]} Bxf6 {[%emt 0:00:30]} 13. Bxf6 {[%emt 0:00:30]} Qxf6 {[%emt 0:00:30]} 14. Qd2 {[%emt 0:00:30]} Re8 {[%emt 0:00:30]} 15. Rfd1 {[%emt 0:00:30]} Rd8 {[%emt 0:00:30]} 16. Rac1 {[%emt 0:00:30]} Bf5 {[%emt 0:06:28]} 17. Qf4 {[%emt 0:20:56]} d3 {[%emt 0:05:36]} 18. exd3 {[%emt 0:02:53]} Bxd3 {[%emt 0:00:30]} 19. Qxf6 {[%emt 0:00:51]} gxf6 {[%emt 0:00:11]} 20. Rd2 {[%emt 0:01:18]} Be4 {[%emt 0:01:50]} 21. Rcd1 {[%emt 0:03:27]} Rxd2 {[%emt 0:01:15]} 22. Rxd2 {[%emt 0:00:27]} Rc8 {[%emt 0:01:21]} 23. h4 {[%emt 0:07:09]} Kf8 {[%emt 0:06:00]} 24. Rd1 {[%emt 0:03:40]} Bxf3 {[%emt 0:07:14]} 25. Bxf3 {[%emt 0:00:57]} Ne5 {[%emt 0:00:17]} 26. Be4 {[%emt 0:03:14]} h6 {[%emt 0:02:49]} 27. b3 {[%emt 0:01:51]} Rc7 {[%emt 0:04:26]} 28. Rd8+ {[%emt 0:00:30]} Kg7 {[%emt 0:00:30]} 29. Ra8 b6 30. Kg2 {[%emt 0:03:18]} Nd7 {[%emt 0:05:05]} 31. a3 {[%emt 0:02:42]} Nc5 {[%emt 0:00:58]} 32. Bd5 {[%emt 0:01:00]} Rd7 {[%emt 0:00:48]} 33. Bc4 {[%emt 0:00:31]} Ne4 {[%emt 0:00:52]} 34. b4 {[%emt 0:01:35]} Nd6 {[%emt 0:00:33]} 35. Ba6 {[%emt 0:01:58]} Ne4 {[%emt 0:01:33]} 36. Kf3 {[%emt 0:00:57]} Re7 {[%emt 0:01:33]} 37. Rb8 {[%emt 0:01:17]} Nd2+ {[%emt 0:01:18]} 38. Kg2 {[%emt 0:04:19]} Rc7 {[%emt 0:07:13]} 39. Ra8 {[%emt 0:01:44]} Re7 {[%emt 0:00:28]} 40. a4 {[%emt 0:00:00]} Ne4 {[%emt 0:00:00]} 41. a5 {[%emt 0:01:36]} bxa5 {[%emt 0:01:29]} 42. bxa5 {[%emt 0:00:12]} Nd6 {[%emt 0:05:37]} 43. Bf1 {[%emt 0:00:50]} Kg6 {[%emt 0:02:03]} 44. a6 {[%emt 0:00:54]} Rd7 {[%emt 0:00:24]} 45. Kf3 {[%emt 0:00:25]} f5 {[%emt 0:00:59]} 46. Bd3 {[%emt 0:02:22]} Rc7 {[%emt 0:00:42]} 47. Rd8 {[%emt 0:00:30]} Nc8 {[%emt 0:00:41]} 48. g4 {[%emt 0:00:40]} Kf6 {[%emt 0:01:09]} 49. Bxf5 {[%emt 0:00:27]} Rc3+ {[%emt 0:00:33]} 50. Kg2 {[%emt 0:00:47]} Nb6 {[%emt 0:00:29]} 51. Rd6+ {[%emt 0:01:14]} Kg7 {[%emt 0:00:20]} 52. Be4 {[%emt 0:00:15]} Ra3 {[%emt 0:00:13]} 53. Bb7 {[%emt 0:00:12]} Ra4 {[%emt 0:00:43]} 54. f3 {[%emt 0:03:25]} Nc4 {[%emt 0:00:49]} 55. Rd3 {[%emt 0:01:53]} Nb6 {[%emt 0:00:28]} 56. Kg3 {[%emt 0:00:58]} Nc4 {[%emt 0:00:44]} 57. Rd7 {[%emt 0:00:44]} Nb6 {[%emt 0:00:08]} 58. Rc7 {[%emt 0:00:19]} Ra3 {[%emt 0:02:50]} 59. Rc6 {[%emt 0:01:27]} Ra4 {[%emt 0:00:20]} 60. h5 {[%emt 0:00:59]} Ra3 {[%emt 0:00:21]} 61. Rc7 {[%emt 0:01:14] f6 Kf4+} Kf8 {[%emt 0:16:59] Kf5 Rd3 Kxf6} 1-0

[Event "European School-ch 2019"]
[Site "Mamaia"]
[Date "2019.06.05"]
[Round "6.29"]
[White "Celik, Ali Alper"]
[Black "Zheng, Harry Z"]
[Result "0-1"]
[ECO "C54"]
[WhiteElo "1169"]
[BlackElo "1653"]
[Annotator "NA RC"]
[PlyCount "112"]
[EventDate "2019.05.31"]
[EventType "swiss"]
[EventCountry "ROU"]
[SourceTitle "playchess.com"]
[Source "ChessBase"]
[SourceQuality "1"]
[TimeControl "40/5400+30:1800+30"]

1. e4 {[%emt 0:00:00]} e5 {[%emt 0:00:00]} 2. Nf3 {[%emt 0:00:00]} Nc6 {[%emt 0:00:09]} 3. Bc4 {[%emt 0:00:00]} Bc5 {[%emt 0:00:42]} 4. c3 {[%emt 0:00:27]} Nf6 {[%emt 0:00:29]} 5. d4 {[%emt 0:00:18]} exd4 {[%emt 0:00:20]} 6. e5 {[%emt 0:00:37]} d5 {[%emt 0:00:55]} 7. Bb5 {[%emt 0:00:55]} Ne4 {[%emt 0:00:36]} 8. cxd4 {[%emt 0:00:51]} Bb6 {[%emt 0:03:39]} 9. Be3 {[%emt 0:00:59]} Bd7 {[%emt 0:02:52]} 10. Qb3 {[%emt 0:11:07]} Ne7 {[%emt 0:07:07]} 11. Bxd7+ {[%emt 0:04:18]} Qxd7 {[%emt 0:00:43]} 12. Nc3 {[%emt 0:02:51]} O-O {[%emt 0:04:49]} 13. Nxe4 {[%emt 0:03:40]} dxe4 {[%emt 0:01:30]} 14. Ng5 {[%emt 0:04:54]} Qg4 {[%emt 0:20:10]} 15. O-O {[%emt 0:12:37]} h6 {[%emt 0:05:57]} 16. f3 {[%emt 0:09:39]} exf3 {[%emt 0:00:17]} 17. Nxf3 {[%emt 0:06:38]} Nf5 {[%emt 0:08:36]} 18. e6 {[%emt 0:10:05]} Qg6 {[%emt 0:11:57]} 19. exf7+ {[%emt 0:09:47]} Qxf7 {[%emt 0:00:19]} 20. Qxf7+ {[%emt 0:04:29]} Rxf7 {[%emt 0:00:25]} 21. Bf2 {[%emt 0:01:00]} Rd7 {[%emt 0:04:21]} 22. Rad1 {[%emt 0:01:44]} Rad8 {[%emt 0:01:48]} 23. Ne5 {[%emt 0:03:27]} Rd6 {[%emt 0:03:02]} 24. Nc4 {[%emt 0:01:58]} Rd5 {[%emt 0:00:42]} 25. Nxb6 {[%emt 0:03:55]} cxb6 {[%emt 0:00:39]} 26. Rc1 {[%emt 0:00:38]} Nxd4 {[%emt 0:01:55]} 27. Bxd4 {[%emt 0:00:28]} Rxd4 {[%emt 0:00:31]} 28. Rc7 {[%emt 0:01:10]} R4d7 {[%emt 0:01:12]} 29. Rfc1 {[%emt 0:01:43]} Rxc7 {[%emt 0:00:21]} 30. Rxc7 {[%emt 0:00:12]} Rd1+ {[%emt 0:00:11]} 31. Kf2 {[%emt 0:00:18]} Rd2+ {[%emt 0:00:20]} 32. Ke3 {[%emt 0:00:08]} Rxb2 {[%emt 0:00:09]} 33. Rxb7 {[%emt 0:00:38]} Rxa2 {[%emt 0:00:06]} 34. Kf3 {[%emt 0:00:10]} Ra5 {[%emt 0:00:58]} 35. g3 {[%emt 0:00:31]} Kh7 {[%emt 0:00:36]} 36. Kg4 {[%emt 0:00:21]} Kg6 {[%emt 0:00:58]} 37. h4 {[%emt 0:00:24]} h5+ {[%emt 0:01:16]} 38. Kh3 {[%emt 0:00:06]} b5 {[%emt 0:02:23]} 39. Kh2 {[%emt 0:00:34]} a6 {[%emt 0:00:26]} 40. Rb6+ {[%emt 0:00:00]} Kf5 {[%emt 0:00:00]} 41. Rb7 {[%emt 0:01:05]} g6 {[%emt 0:01:44]} 42. Rf7+ {[%emt 0:00:07]} Ke6 {[%emt 0:00:24]} 43. Rg7 {[%emt 0:00:18]} Kf6 {[%emt 0:00:24]} 44. Rb7 {[%emt 0:00:07]} Ra4 {[%emt 0:00:44]} 45. Rb6+ {[%emt 0:00:09]} Kg7 {[%emt 0:00:37]} 46. Rb7+ {[%emt 0:00:10]} Kh6 {[%emt 0:00:05]} 47. Rb8 {[%emt 0:00:05]} b4 {[%emt 0:00:05]} 48. Kh3 {[%emt 0:00:30]} a5 {[%emt 0:00:07]} 49. Rh8+ {[%emt 0:00:04]} Kg7 {[%emt 0:00:13]} 50. Rb8 {[%emt 0:00:17]} Ra3 {[%emt 0:00:03]} 51. Rb7+ {[%emt 0:00:08]} Kh6 {[%emt 0:00:09]} 52. Re7 {[%emt 0:00:27]} b3 {[%emt 0:00:23]} 53. Re1 {[%emt 0:00:25]} b2 {[%emt 0:00:15]} 54. Rb1 {[%emt 0:00:10]} Rb3 {[%emt 0:00:20]} 55. Kg2 {[%emt 0:00:08]} a4 {[%emt 0:00:09]} 56. Kf2 {[%emt 0:00:07]} a3 0-1

[Event "European School-ch 2019"]
[Site "Mamaia"]
[Date "2019.06.05"]
[Round "6.30"]
[White "Ochedzan, Filip"]
[Black "Tutunculer, Cagan"]
[Result "1-0"]
[ECO "B76"]
[WhiteElo "1298"]
[BlackElo "1193"]
[Annotator "NA RC"]
[PlyCount "43"]
[EventDate "2019.05.31"]
[EventType "swiss"]
[EventCountry "ROU"]
[SourceTitle "playchess.com"]
[Source "ChessBase"]
[SourceQuality "1"]
[TimeControl "40/5400+30:1800+30"]

1. e4 {[%emt 0:00:00]} c5 {[%emt 0:00:00]} 2. Nf3 {[%emt 0:00:00]} d6 {[%emt 0:00:03]} 3. d4 {[%emt 0:00:32]} cxd4 {[%emt 0:00:11]} 4. Nxd4 {[%emt 0:00:21]} Nf6 {[%emt 0:00:34]} 5. Nc3 {[%emt 0:00:41]} g6 {[%emt 0:00:22]} 6. Be3 {[%emt 0:01:03]} Bg7 {[%emt 0:00:42]} 7. f3 {[%emt 0:00:55]} O-O {[%emt 0:00:57]} 8. Qd2 {[%emt 0:01:02]} Nc6 {[%emt 0:01:06]} 9. g4 {[%emt 0:00:55]} Bd7 {[%emt 0:01:37]} 10. O-O-O {[%emt 0:01:26]} Rc8 {[%emt 0:03:43]} 11. h4 {[%emt 0:02:07]} h5 {[%emt 0:00:29]} 12. gxh5 Nxh5 {[%emt 0:00:42]} 13. Rg1 {[%emt 0:07:44]} Ne5 {[%emt 0:02:58]} 14. f4 {[%emt 0:05:01]} Nc4 {[%emt 0:07:32]} 15. Bxc4 {[%emt 0:00:56]} Rxc4 {[%emt 0:00:26]} 16. f5 {[%emt 0:05:00]} Qe8 {[%emt 0:05:40]} 17. Rg2 {[%emt 0:13:02]} gxf5 {[%emt 0:16:26]} 18. Qe2 {[%emt 0:02:58]} Rxc3 {[%emt 0:09:06]} 19. bxc3 {[%emt 0:00:49]} f6 {[%emt 0:00:25]} 20. exf5 {[%emt 0:02:31]} Qf7 {[%emt 0:01:03]} 21. Rdg1 {[%emt 0:01:53]} Kh7 {[%emt 0:02:35]} 22. Rg6 1-0

[Event "European School-ch 2019"]
[Site "Mamaia"]
[Date "2019.06.05"]
[Round "6.32"]
[White "Mammadli, Ali"]
[Black "Qalabegashvili, Data"]
[Result "0-1"]
[ECO "A00"]
[WhiteElo "1220"]
[BlackElo "1309"]
[Annotator "NA RC"]
[PlyCount "84"]
[EventDate "2019.05.31"]
[EventType "swiss"]
[EventCountry "ROU"]
[SourceTitle "playchess.com"]
[Source "ChessBase"]
[SourceQuality "1"]
[TimeControl "40/5400+30:1800+30"]

1. Nc3 {[%emt 0:00:00]} c5 {[%emt 0:00:20]} 2. Nf3 {[%emt 0:00:00]} Nc6 {[%emt 0:00:15]} 3. d4 {[%emt 0:00:00]} cxd4 {[%emt 0:00:15]} 4. Nxd4 {[%emt 0:00:00]} g6 {[%emt 0:00:25]} 5. g3 {[%emt 0:00:09]} Bg7 {[%emt 0:00:25]} 6. Be3 {[%emt 0:00:10]} d6 {[%emt 0:00:39]} 7. Bg2 {[%emt 0:00:04]} Bd7 {[%emt 0:00:11]} 8. O-O {[%emt 0:00:06]} Nf6 {[%emt 0:00:37]} 9. Qd2 {[%emt 0:01:32]} O-O {[%emt 0:00:39]} 10. Nb3 {[%emt 0:01:36]} Rc8 {[%emt 0:01:12]} 11. Rad1 {[%emt 0:00:52]} a6 {[%emt 0:01:19]} 12. Na4 {[%emt 0:04:22]} Bf5 {[%emt 0:02:37]} 13. Nb6 {[%emt 0:02:52]} Rc7 {[%emt 0:01:02]} 14. Nc4 {[%emt 0:00:26]} Qe8 {[%emt 0:02:54]} 15. Bb6 {[%emt 0:01:16]} Rc8 {[%emt 0:00:55]} 16. Rfe1 {[%emt 0:02:04]} Nd7 {[%emt 0:01:23]} 17. c3 {[%emt 0:07:29]} Be6 {[%emt 0:02:59]} 18. Bd5 {[%emt 0:01:03]} Bxd5 {[%emt 0:02:04]} 19. Qxd5 {[%emt 0:00:08]} Nxb6 {[%emt 0:03:27]} 20. Nxb6 {[%emt 0:00:11]} Rd8 {[%emt 0:01:27]} 21. Nd4 {[%emt 0:02:25]} Nxd4 {[%emt 0:01:59]} 22. cxd4 {[%emt 0:00:06]} e6 {[%emt 0:02:28]} 23. Qb3 {[%emt 0:04:44]} Qe7 {[%emt 0:03:26]} 24. e3 {[%emt 0:00:49]} e5 {[%emt 0:12:29]} 25. d5 {[%emt 0:00:37]} f5 {[%emt 0:01:20]} 26. Rc1 {[%emt 0:00:51]} g5 {[%emt 0:04:09]} 27. Qc4 {[%emt 0:01:37]} Rf7 {[%emt 0:01:05]} 28. Rc2 {[%emt 0:01:43]} f4 {[%emt 0:00:53]} 29. e4 {[%emt 0:05:35]} fxg3 {[%emt 0:01:46]} 30. hxg3 {[%emt 0:00:47]} h5 {[%emt 0:02:39]} 31. Qe2 {[%emt 0:03:37]} h4 32. Qg4 {[%emt 0:00:06]} hxg3 {[%emt 0:03:11]} 33. Qxg3 {[%emt 0:00:07]} Rdf8 {[%emt 0:01:50]} 34. Nc4 {[%emt 0:01:32]} Rf4 {[%emt 0:01:50]} 35. Re3 {[%emt 0:02:06]} b5 {[%emt 0:02:44]} 36. Na5 {[%emt 0:01:50]} Qd7 {[%emt 0:02:06]} 37. Kf1 {[%emt 0:04:18]} Qf7 {[%emt 0:01:37]} 38. Nb3 {[%emt 0:00:39]} Qh5 {[%emt 0:01:33]} 39. Rd2 {[%emt 0:02:21]} Rh4 {[%emt 0:01:15]} 40. Rdd3 {[%emt 0:00:00]} Rff4 {[%emt 0:00:00]} 41. f3 {[%emt 0:07:21]} g4 {[%emt 0:03:16]} 42. Nd2 {[%emt 0:00:06]} Rh3 {[%emt 0:00:54]} 0-1

[Event "European School-ch 2019"]
[Site "Mamaia"]
[Date "2019.06.05"]
[Round "6.33"]
[White "Kumar, Sanjit S"]
[Black "Anghelescu, Teodor-Stefan"]
[Result "1/2-1/2"]
[ECO "B41"]
[WhiteElo "1392"]
[BlackElo "1266"]
[Annotator "NA RC"]
[PlyCount "83"]
[EventDate "2019.05.31"]
[EventType "swiss"]
[EventCountry "ROU"]
[SourceTitle "playchess.com"]
[Source "ChessBase"]
[SourceQuality "1"]
[TimeControl "40/5400+30:1800+30"]

1. e4 {[%emt 0:00:00]} c5 {[%emt 0:00:00]} 2. Nf3 {[%emt 0:00:00]} e6 {[%emt 0:00:24]} 3. d4 {[%emt 0:00:00]} cxd4 {[%emt 0:00:14]} 4. Nxd4 {[%emt 0:00:00]} a6 {[%emt 0:00:57]} 5. c4 {[%emt 0:00:02]} Qc7 {[%emt 0:00:30]} 6. Nc3 {[%emt 0:00:09]} Nf6 {[%emt 0:00:35]} 7. a3 {[%emt 0:00:13]} Be7 {[%emt 0:01:10]} 8. Be2 {[%emt 0:00:43]} b6 {[%emt 0:00:44]} 9. Be3 {[%emt 0:00:25]} Bb7 {[%emt 0:00:11]} 10. f3 {[%emt 0:00:07]} d6 {[%emt 0:00:27]} 11. O-O {[%emt 0:00:18]} Nbd7 {[%emt 0:00:08]} 12. Qd2 {[%emt 0:01:24]} O-O {[%emt 0:00:13]} 13. Rfd1 {[%emt 0:02:12]} Rfe8 {[%emt 0:00:53]} 14. Rac1 {[%emt 0:01:09]} Rac8 {[%emt 0:00:00]} 15. b4 {[%emt 0:01:47]} Qb8 {[%emt 0:01:05]} 16. Qe1 {[%emt 0:03:50]} Bd8 {[%emt 0:03:25]} 17. Qf2 {[%emt 0:04:09]} Bc7 {[%emt 0:00:57]} 18. Kh1 {[%emt 0:02:19]} Qa8 {[%emt 0:07:57]} 19. Nc2 {[%emt 0:16:30]} Qb8 {[%emt 0:01:40]} 20. Na4 {[%emt 0:09:53]} Ba8 {[%emt 0:00:46]} 21. c5 {[%emt 0:03:10]} dxc5 {[%emt 0:02:15]} 22. bxc5 {[%emt 0:00:32]} b5 {[%emt 0:00:41]} 23. Nc3 {[%emt 0:03:30]} Bf4 {[%emt 0:05:19]} 24. Bxf4 {[%emt 0:03:01]} Qxf4 {[%emt 0:00:09]} 25. Nb4 {[%emt 0:03:42]} Nxc5 {[%emt 0:02:11]} 26. Qe1 {[%emt 0:09:31]} h5 {[%emt 0:33:17]} 27. Nxa6 {[%emt 0:02:40]} Nxa6 {[%emt 0:05:45]} 28. Bxb5 {[%emt 0:00:22]} Nc7 {[%emt 0:01:00]} 29. Bxe8 {[%emt 0:00:19]} Ncxe8 {[%emt 0:00:30]} 30. Ne2 {[%emt 0:01:00]} Qb8 {[%emt 0:01:25]} 31. Rxc8 {[%emt 0:00:29]} Qxc8 {[%emt 0:00:05]} 32. Qc3 {[%emt 0:01:21]} Qxc3 {[%emt 0:00:45]} 33. Nxc3 {[%emt 0:00:09]} Kf8 {[%emt 0:00:12]} 34. Kg1 {[%emt 0:00:28]} Ke7 {[%emt 0:00:52]} 35. Kf2 {[%emt 0:00:19]} g5 {[%emt 0:01:27]} 36. Ke3 {[%emt 0:01:19]} e5 {[%emt 0:00:34]} 37. a4 {[%emt 0:00:56]} Nd6 {[%emt 0:00:24]} 38. Kd3 {[%emt 0:01:49]} Kd7 {[%emt 0:02:00]} 39. Nb5 {[%emt 0:00:00]} Nxb5 {[%emt 0:00:00]} 40. axb5 {[%emt 0:00:00]} Kc7 {[%emt 0:00:00]} 41. Kc4 {[%emt 0:01:52]} Nd7 {[%emt 0:04:09]} 42. h3 {[%emt 0:01:05]} 1/2-1/2

[Event "European School-ch 2019"]
[Site "Mamaia"]
[Date "2019.06.05"]
[Round "6.34"]
[White "Paunescu, Stefan-Vlad"]
[Black "Kumar, Soham"]
[Result "1-0"]
[ECO "A45"]
[WhiteElo "1358"]
[BlackElo "1393"]
[Annotator "NA RC"]
[PlyCount "119"]
[EventDate "2019.05.31"]
[EventType "swiss"]
[EventCountry "ROU"]
[SourceTitle "playchess.com"]
[Source "ChessBase"]
[SourceQuality "1"]
[TimeControl "40/5400+30:1800+30"]

1. d4 {[%emt 0:00:00]} Nf6 {[%emt 0:00:00]} 2. Nc3 {[%emt 0:00:00]} d5 {[%emt 0:00:00]} 3. Bf4 {[%emt 0:00:00]} Bf5 {[%emt 0:00:10]} 4. f3 {[%emt 0:00:00]} e6 {[%emt 0:00:38]} 5. g4 {[%emt 0:00:03]} Bg6 {[%emt 0:00:11]} 6. h4 {[%emt 0:00:17]} h6 {[%emt 0:03:57]} 7. h5 {[%emt 0:00:08]} Bh7 {[%emt 0:00:21]} 8. e3 {[%emt 0:00:33]} Bd6 {[%emt 0:00:41]} 9. Nh3 {[%emt 0:00:30]} Nc6 {[%emt 0:09:10]} 10. a3 {[%emt 0:01:29]} a6 {[%emt 0:00:57]} 11. Bd3 {[%emt 0:00:47]} Qe7 {[%emt 0:06:38]} 12. Qe2 {[%emt 0:04:07]} Na5 {[%emt 0:08:34]} 13. e4 {[%emt 0:02:19]} dxe4 {[%emt 0:06:13]} 14. fxe4 {[%emt 0:00:44]} e5 {[%emt 0:02:50]} 15. dxe5 {[%emt 0:00:23]} Bxe5 {[%emt 0:00:14]} 16. Bxe5 {[%emt 0:00:28]} Qxe5 {[%emt 0:00:12]} 17. O-O-O {[%emt 0:00:36]} O-O-O {[%emt 0:03:44]} 18. Bxa6 {[%emt 0:03:07]} Rde8 {[%emt 0:12:01]} 19. Bd3 {[%emt 0:02:27]} Re6 {[%emt 0:05:13]} 20. Nf2 {[%emt 0:03:14]} Rhe8 {[%emt 0:01:33]} 21. Rhg1 {[%emt 0:01:46]} Nc6 {[%emt 0:01:30]} 22. Bc4 {[%emt 0:01:43]} R6e7 {[%emt 0:01:04]} 23. Nd5 {[%emt 0:01:41]} Nxd5 {[%emt 0:04:05]} 24. Bxd5 {[%emt 0:00:54]} Qf6 {[%emt 0:07:22]} 25. Rgf1 {[%emt 0:03:29]} Qh4 {[%emt 0:04:45]} 26. Bxc6 {[%emt 0:00:48]} bxc6 {[%emt 0:00:10]} 27. Qa6+ Kb8 28. Rd3 {[%emt 0:01:49]} Qg5+ {[%emt 0:00:51]} 29. Kb1 {[%emt 0:00:11]} Re5 {[%emt 0:01:03]} 30. Rb3+ {[%emt 0:01:06]} Rb5 {[%emt 0:00:31]} 31. Qxc6 {[%emt 0:00:35]} Ree5 {[%emt 0:01:09]} 32. Nh3 {[%emt 0:00:45]} Rxb3 {[%emt 0:08:09]} 33. Nxg5 {[%emt 0:00:23]} Rb6 {[%emt 0:01:05]} 34. Qc3 {[%emt 0:01:14]} Rxg5 {[%emt 0:00:48]} 35. Rxf7 {[%emt 0:00:27]} Rb7 {[%emt 0:01:28]} 36. Rxg7 {[%emt 0:01:30]} Bxe4 {[%emt 0:01:04]} 37. Rxg5 {[%emt 0:00:19]} hxg5 {[%emt 0:00:08]} 38. h6 {[%emt 0:00:33]} Rb6 {[%emt 0:00:10]} 39. h7 {[%emt 0:00:11]} Bxh7 {[%emt 0:00:09]} 40. Qh8+ {[%emt 0:00:07]} Kb7 {[%emt 0:00:11]} 41. Qxh7 {[%emt 0:00:07]} Kc8 {[%emt 0:00:13]} 42. Qf5+ Kd8 {[%emt 0:00:08]} 43. Qxg5+ {[%emt 0:00:11]} Ke8 {[%emt 0:00:12]} 44. Qe5+ {[%emt 0:00:12]} Kf8 {[%emt 0:00:11]} 45. Qxc7 {[%emt 0:00:06]} Rg6 {[%emt 0:00:14]} 46. Qf4+ {[%emt 0:00:08]} Kg7 {[%emt 0:00:11]} 47. a4 {[%emt 0:00:40]} Ra6 {[%emt 0:00:08]} 48. a5 {[%emt 0:00:09]} Kg6 {[%emt 0:00:12]} 49. Qc7 {[%emt 0:00:07]} Kg5 {[%emt 0:00:11]} 50. Qb6 {[%emt 0:00:15]} Ra8 {[%emt 0:00:12]} 51. a6 {[%emt 0:00:06]} Kxg4 {[%emt 0:00:08]} 52. a7 {[%emt 0:00:08]} Kf5 {[%emt 0:00:07]} 53. Qb5+ {[%emt 0:00:16]} Kg4 {[%emt 0:00:21]} 54. Qe2+ {[%emt 0:00:16]} Kf5 {[%emt 0:00:07]} 55. Qf3+ {[%emt 0:00:05]} Ke6 {[%emt 0:00:12]} 56. Qxa8 {[%emt 0:00:04]} Kd7 {[%emt 0:00:12]} 57. Qb7+ {[%emt 0:00:04]} Kd6 {[%emt 0:00:10]} 58. a8=Q {[%emt 0:00:06]} Kc5 {[%emt 0:00:15]} 59. Qd5+ {[%emt 0:00:12]} Kb4 {[%emt 0:00:19]} 60. c3# 1-0